fUST/lending_fUST_20251221
["ID","MTS","AMOUNT","RATE_DAILY","PERIOD"]
[399311187,1766281266952,1372.58570056,0.00010953,3]
[399311188,1766281282280,260.24503404,0.00010618,2]
[399311189,1766281284006,468.44106127,0.00011018,2]
[399311190,1766281352181,338.95,9.164e-05,2]
[399311191,1766281352643,677.89,9.997e-05,2]
[399311192,1766281353069,598.14626797,0.00010831,2]
[399311193,1766281353092,418.69373203,0.00010831,2]
[399311194,1766281354338,450.07315799,0.00011011,2]
[399311196,1766281379604,5000.0,0.00011171,2]
[399311197,1766281402283,4131.24310998,0.00011171,2]
[399311198,1766281402306,868.75689002,0.00011171,2]
[399311199,1766281425019,5000.0,0.00011171,2]
[399311200,1766281433913,483.47,9.052e-05,2]
[399311201,1766281434314,966.94,9.875e-05,2]
[399311202,1766281434713,1450.4,0.00010698,2]
[399311203,1766281448798,1230.44310998,0.00011171,2]
[399311204,1766281448820,3769.55689002,0.00011171,2]
[399311205,1766281464331,13323.57,0.00032876,120]
[399311206,1766281465719,5000.0,0.00011171,2]
[399311207,1766281473427,1230.45310998,0.00011171,2]
[399311208,1766281473449,3769.54689002,0.00011171,2]
[399311209,1766281489335,5000.0,0.00011171,2]
[399311210,1766281497496,1230.46310998,0.00011171,2]
[399311211,1766281507860,10000.0,0.0003287,120]
[399311212,1766281513735,560.33,9.006e-05,2]
[399311213,1766281514148,1120.66,9.825e-05,2]
[399311214,1766281515032,1680.99,0.00010644,2]
[399311215,1766281549422,5140.7,0.0003287,120]
[399311216,1766281564783,351.23457021,0.00010777,2]
[399311217,1766281588979,286.70795318,0.00010612,2]
[399311218,1766281591162,516.07431572,0.00011008,2]
[399311219,1766281595124,517.54,8.666e-05,2]
[399311220,1766281595535,1035.08,9.453e-05,2]
[399311221,1766281596439,1552.62,0.00010241,2]
[399311222,1766281597348,2070.16,0.00011029,2]
[399311223,1766281631993,1798.5,0.00032876,120]
[399311224,1766281643179,308.61316089,0.00010801,2]
[399311225,1766281643201,550.84453505,0.00010801,2]
[399311226,1766281664982,1776.0,0.00032876,120]
[399311227,1766281677128,473.92,9.196e-05,2]
[399311228,1766281677524,947.85,0.00010032,2]
[399311229,1766281677908,1421.77,0.00010868,2]
[399311230,1766281689866,-434.54737044,0.00011142,2]
[399311231,1766281692020,12768.42,0.00032876,120]
[399311232,1766281692048,-345.94663555,0.00011142,2]
[399311233,1766281694460,-191.04719243,0.00011142,2]
[399311234,1766281695123,1775.0,0.00032876,120]
[399311235,1766281696548,-309.93830032,0.00011142,2]
[399311236,1766281699515,-287.85575389,0.00011142,2]
[399311237,1766281699681,5000.0,0.00011115,2]
[399311238,1766281701257,-345.39852634,0.00011142,2]
[399311239,1766281703918,-372.29702819,0.00011142,2]
[399311240,1766281704678,1775.0,0.00032876,120]
[399311241,1766281707716,-301.98164749,0.00011142,2]
[399311242,1766281709850,-220.57047988,0.00011142,2]
[399311243,1766281712566,-191.88407641,0.00011142,2]
[399311244,1766281716627,-182.25682745,0.00011142,2]
[399311245,1766281718179,-457.40434731,0.00011142,2]
[399311246,1766281720302,-261.83091403,0.00011142,2]
[399311247,1766281723201,2156.47,0.00011115,2]
[399311248,1766281723223,2843.53,0.00011115,2]
[399311249,1766281723263,-196.29484181,0.00011142,2]
[399311250,1766281724809,-289.10183338,0.00011142,2]
[399311251,1766281727027,-236.0063417,0.00011142,2]
[399311252,1766281727356,1780.4,0.00032876,120]
[399311253,1766281728628,-170.6154428,0.00011142,2]
[399311254,1766281731779,-585.97519267,0.00011142,2]
[399311255,1766281733299,-322.31467178,0.00011142,2]
[399311256,1766281736328,-519.16379178,0.00011141,2]
[399311257,1766281736351,-90.83620822,0.00011141,2]
[399311258,1766281739841,-103.62187726,0.00011141,2]
[399311259,1766281739864,-199.57715632,0.00011141,2]
[399311260,1766281741463,-151.34372274,0.00011141,2]
[399311261,1766281746629,5000.0,0.00011115,2]
[399311262,1766281749473,-149.07912094,0.00011141,2]
[399311263,1766281749773,-276.47103487,0.00011141,2]
[399311264,1766281753454,-23.52896513,0.00011141,2]
[399311265,1766281753479,-275.49098787,0.00011142,2]
[399311266,1766281755852,-281.44978733,0.00011142,2]
[399311267,1766281757107,452.43,9.835e-05,2]
[399311268,1766281757548,904.86,0.00010729,2]
[399311269,1766281770690,799.19,0.00011115,2]
[399311270,1766281770714,4200.81,0.00011115,2]
[399311271,1766281794543,1102.68427157,0.00032876,120]
[399311272,1766281794570,5000.0,0.00011115,2]
[399311273,1766281799380,1000.0,0.00032876,120]
[399311274,1766281806950,799.2,0.00011042,2]
[399311275,1766281806971,10000.01,0.00011042,2]
[399311276,1766281806991,10000.01,0.00011042,2]
[399311277,1766281807012,10000.01,0.00011042,2]
[399311278,1766281807034,10000.01,0.00011042,2]
[399311279,1766281807055,10000.01,0.00011042,2]
[399311280,1766281807076,10000.01,0.00011042,2]
[399311281,1766281807097,10000.01,0.00011042,2]
[399311283,1766281830489,1775.0,0.00032876,120]
[399311305,1766281831682,-5000.0,0.00010932,2]
[399311306,1766281831692,-5705.49593843,0.00011042,2]
[399311322,1766281833767,-5000.0,0.00010823,2]
[399311328,1766281837690,0.01,9.839e-05,2]
[399311329,1766281837714,604.69,9.839e-05,2]
[399311330,1766281837761,1209.4,0.00010733,2]
[399311333,1766281839533,1775.0,0.00032876,120]
[399311334,1766281839847,-1987.87049881,0.00011,2]
[399311335,1766281840104,-3e-08,0.00011,2]
[399311336,1766281840196,-2012.12950116,0.00011,2]
[399311337,1766281840207,-1677482.79782267,0.00011042,2]
[399311338,1766281840216,-83358.73170669,0.00011142,2]
[399311339,1766281840231,-8965.26925915,0.00011142,2]
[399311413,1766281841726,5000.0,0.00010932,2]
[399311518,1766281842857,-150.27663137,0.00011142,2]
[399311519,1766281842894,-31418.17967045,0.00011142,2]
[399311533,1766281843193,-4260.0,0.00011142,2]
[399311769,1766281845727,-53267.38049088,0.00011142,2]
[399311771,1766281845738,-725.61998,0.00011142,2]
[399311775,1766281845781,-284066.44657693,0.00011142,2]
[399311778,1766281858006,1550.01385853,0.00011022,2]
[399311779,1766281866230,5000.0,0.00011022,2]
[399311780,1766281868695,1876.92703583,0.00010801,2]
[399311781,1766281883057,1573.06910564,0.00011022,2]
[399311782,1766281883078,3426.93089436,0.00011022,2]
[399311783,1766281885994,1779.8,0.00032877,120]
[399311784,1766281891418,5000.0,0.00011022,2]
[399311785,1766281900874,3465.127962,0.00030137,120]
[399311786,1766281907774,1573.07910564,0.00011022,2]
[399311787,1766281907794,3426.92089436,0.00011022,2]
[399311788,1766281915819,5000.0,0.00011022,2]
[399311789,1766281916888,747.94,8.666e-05,2]
[399311790,1766281917288,1495.89,9.453e-05,2]
[399311791,1766281917699,2243.83,0.00010241,2]
[399311792,1766281917948,2500.0,0.00032,120]
[399311793,1766281928152,12236.41,0.00032876,120]
[399311794,1766281929813,-284.38819223,0.00011029,2]
[399311795,1766281931628,512.35,0.00011022,2]
[399311796,1766281931663,3642.75920613,0.00011022,2]
[399311797,1766281932304,-310.98655757,0.00011029,2]
[399311798,1766281934254,-195.54659478,0.00011029,2]
[399311799,1766281936445,-273.19444444,0.00011029,2]
[399311800,1766281937939,-284.6344141,0.00011029,2]
[399311801,1766281939438,5000.0,0.00011022,2]
[399311802,1766281940271,-164.98032726,0.00011029,2]
[399311803,1766281943556,-200.21115038,0.00011029,2]
[399311804,1766281946198,-245.26981454,0.00011029,2]
[399311805,1766281948519,-458.70872275,0.00011029,2]
[399311807,1766281950523,9786.34,0.00032877,120]
[399311808,1766281951052,-404.92190428,0.00011029,2]
[399311809,1766281957209,327.37894834,0.00010848,2]
[399311810,1766281959402,-168.93787767,0.00011029,2]
[399311811,1766281959423,-116.9477799,0.00011036,2]
[399311812,1766281963070,1029.87184553,0.00011022,2]
[399311813,1766281963092,3970.12815447,0.00011022,2]
[399311814,1766281965048,-242.37310353,0.00011036,2]
[399311815,1766281985968,5000.0,0.00011022,2]
[399311816,1766281996885,652.75,8.831e-05,2]
[399311817,1766281997385,1305.5,9.634e-05,2]
[399311818,1766281998302,1958.26,0.00010436,2]
[399311819,1766282008938,1083.5,0.00011026,2]
[399311820,1766282008960,3916.5,0.00011026,2]
[399311821,1766282023298,1000.0,0.00032,120]
[399311822,1766282025257,6267.0,0.000328,120]
[399311823,1766282033343,5000.0,0.00011026,2]
[399311824,1766282055976,1083.51,0.00011026,2]
[399311825,1766282056000,3916.49,0.00011026,2]
[399311826,1766282078940,670.47,8.844e-05,2]
[399311827,1766282078970,5000.0,0.00011026,2]
[399311828,1766282079373,413.05,9.648e-05,2]
[399311829,1766282079396,927.88,9.648e-05,2]
[399311830,1766282079776,2011.4,0.00010452,2]
[399311831,1766282082264,150.0,9e-07,2]
[399311832,1766282094414,7756.1097474,0.00032876,120]
[399311833,1766282102061,5000.0,0.00011026,2]
[399311834,1766282125393,1910.73,0.00011026,2]
[399311835,1766282125417,3089.27,0.00011026,2]
[399311836,1766282130751,1000.0,0.00011,2]
[399311837,1766282149883,5000.0,0.00011026,2]
[399311838,1766282158426,626.9,8.853e-05,2]
[399311839,1766282158809,283.84,9.657e-05,2]
[399311840,1766282158834,969.97,9.657e-05,2]
[399311841,1766282159244,1880.71,0.00010462,2]
[399311842,1766282166194,273.19444444,0.00011016,2]
[399311843,1766282169448,376.20332359,0.00010777,2]
[399311844,1766282172926,11726.56,0.00032876,120]
[399311845,1766282175221,5000.0,0.00011016,2]
[399311846,1766282188636,166.2538339,0.00010847,2]
[399311847,1766282199892,1333.67839807,0.00011016,2]
[399311848,1766282199917,3666.32160193,0.00011016,2]
[399311849,1766282216793,749.13681348,0.00011016,2]
[399311850,1766282225551,5000.0,0.00011016,2]
[399311851,1766282229676,50000.0,0.0003287,120]
[399311852,1766282237149,50000.0,0.0003287,120]
[399311853,1766282237582,584.55158459,8.882e-05,2]
[399311854,1766282237608,17.38841541,8.882e-05,2]
[399311855,1766282238011,1203.88,9.689e-05,2]
[399311856,1766282238469,1805.82,0.00010496,2]
[399311857,1766282248859,5000.0,0.00011016,2]
[399311858,1766282259800,-435.8019763,0.00011039,2]
[399311859,1766282259821,-65.44901864,0.00011042,2]
[399311860,1766282260017,172.41648883,0.00010119,2]
[399311861,1766282262114,310.34967989,0.0001099,2]
[399311862,1766282273359,1490.15541587,0.00011016,2]
[399311863,1766282276636,-287.6699232,0.00011016,2]
[399311864,1766282278824,-290.46925818,0.00011016,2]
[399311865,1766282280330,-393.38593051,0.00011016,2]
[399311866,1766282281788,-281.68920644,0.00011016,2]
[399311867,1766282286674,-237.80772986,0.00011016,2]
[399311868,1766282289687,1727.2265184,0.00010916,2]
[399311869,1766282292328,-236.17280447,0.00011016,2]
[399311870,1766282294710,-351.67810201,0.00011016,2]
[399311871,1766282300029,-298.32210853,0.00011016,2]
[399311872,1766282303361,-470.04377759,0.00011016,2]
[399311873,1766282310624,-281.41465633,0.00011016,2]
[399311874,1766282315723,-207.17384502,0.00011016,2]
[399311875,1766282317262,-174.01724199,0.00011016,2]
[399311876,1766282317286,-81.79898035,0.00011042,2]
[399311877,1766282318079,592.07,8.66e-05,2]
[399311878,1766282318965,1184.13,9.448e-05,2]
[399311879,1766282319381,1776.2,0.00010235,2]
[399311880,1766282321167,5000.0,0.00011006,2]
[399311881,1766282321973,-325.81002386,0.00011022,2]
[399311882,1766282324149,-385.76599839,0.00011022,2]
[399311883,1766282328649,-197.79623766,0.00011022,2]
[399311884,1766282331698,-202.84598999,0.00011022,2]
[399311885,1766282337437,-368.13813171,0.00011022,2]
[399311886,1766282339778,-206.8269527,0.00011022,2]
[399311887,1766282341367,-316.00207035,0.00011022,2]
[399311888,1766282344215,5000.0,0.00011006,2]
[399311889,1766282367830,5000.0,0.00011012,2]
[399311890,1766282391249,0.01,0.00011012,2]
[399311891,1766282391272,4999.99,0.00011012,2]
[399311892,1766282397880,534.88,8.687e-05,2]
[399311893,1766282398284,1069.76,9.477e-05,2]
[399311894,1766282398706,1604.64,0.00010267,2]
[399311895,1766282409767,-383.2583,0.00011022,2]
[399311896,1766282409789,-447.65814952,0.00011022,2]
[399311897,1766282417389,1790.74,0.00011012,2]
[399311898,1766282417413,3209.26,0.00011012,2]
[399311899,1766282417516,11237.95,0.00032876,120]
[399311901,1766282477675,521.68,8.677e-05,2]
[399311902,1766282478094,1043.35,9.466e-05,2]
[399311903,1766282478525,1565.03,0.00010255,2]
[399311904,1766282478570,204.35070368,0.0001067,5]
[399311905,1766282489328,1000.7,0.00032877,120]
[399311906,1766282491612,447.86643699,0.00010553,2]
[399311907,1766282493258,806.15958657,0.00010988,2]
[399311908,1766282548384,2443.375464,0.00010132,2]
[399311909,1766282557463,537.43,8.698e-05,2]
[399311910,1766282557852,1074.86,9.489e-05,2]
[399311911,1766282558320,1612.29,0.0001028,2]
[399311912,1766282558933,-273.19444444,0.0001067,5]
[399311913,1766282563214,-363.91625497,0.0001067,5]
[399311914,1766282565282,-22.27440921,0.0001067,5]
[399311915,1766282565305,-226.03353956,0.0001067,5]
[399311916,1766282588102,-71.02725269,0.0001067,5]
[399311917,1766282588398,-257.7272025,0.00010793,2]
[399311918,1766282638391,571.07,8.465e-05,2]
[399311919,1766282638784,1142.15,9.235e-05,2]
[399311920,1766282639734,1713.22,0.00010004,2]
[399311921,1766282645001,-2284.29,0.00010774,2]
[399311922,1766282645674,-169.35873428,0.00010793,2]
[399311923,1766282645696,-176.18888576,0.00010915,2]
[399311924,1766282647397,5000.0,0.00010783,2]
[399311925,1766282666940,10769.7,0.00032876,120]
[399311926,1766282670844,5000.0,0.00010905,2]
[399311927,1766282687508,579.0,0.00010905,2]
[399311928,1766282695622,4421.01,0.00010905,2]
[399311929,1766282695645,578.99,0.00010905,2]
[399311930,1766282717940,509.85,8.444e-05,2]
[399311931,1766282718330,1019.69,9.212e-05,2]
[399311932,1766282718904,1529.54,9.979e-05,2]
[399311933,1766282718940,5000.0,0.00010905,2]
[399311934,1766282719151,1361.94,0.00010747,2]
[399311935,1766282719177,677.44,0.00010747,2]
[399311936,1766282786537,-244.16714324,0.00010806,2]
[399311937,1766282793662,-234.16943277,0.00010806,2]
[399311938,1766282796072,-251.2682324,0.00010806,2]
[399311939,1766282798195,481.71,9.393e-05,2]
[399311940,1766282798618,963.42,0.00010247,2]
[399311942,1766282859853,-185.18,0.00010752,2]
[399311943,1766282882649,208.48,4.995e-05,2]
[399311944,1766282882924,208.48,4.995e-05,2]
[399311945,1766282888703,509.72,8.978e-05,2]
[399311946,1766282889135,1019.43,9.794e-05,2]
[399311947,1766282889906,1529.15,0.0001061,2]
[399311948,1766282901006,169.905749,5.009e-05,2]
[399311949,1766282901206,169.905749,0.00010019,2]
[399311950,1766282904782,-185.18,0.00010752,2]
[399311951,1766282923037,10320.96,0.00032876,120]
[399311952,1766282925596,5000.0,0.00010752,2]
[399311957,1766282942962,155.72,0.0001,2]
[399311958,1766282945360,155.72,0.000102,2]
[399311959,1766282947835,155.72,0.000104,2]
[399311960,1766282948533,2663.888502,0.00010752,2]
[399311961,1766282948558,2336.111498,0.00010752,2]
[399311962,1766282950224,155.72,0.000106,2]
[399311963,1766282971437,5000.0,0.00010752,2]
[399311964,1766282971796,470.79,9.379e-05,2]
[399311965,1766282972373,941.59,0.00010232,2]
[399311966,1766282992415,17286.67533148,0.0003287,120]
[399311967,1766282995630,1095.798502,0.00010752,2]
[399311968,1766282995652,3904.201498,0.00010752,2]
[399311969,1766283005075,571.0,0.00010752,2]
[399311970,1766283019710,5000.0,0.00010752,2]
[399311971,1766283023555,-531.30882614,0.00010752,2]
[399311972,1766283024399,601.2,0.00032877,120]
[399311990,1766283031781,-418.54421804,0.00010779,2]
[399311992,1766283031791,-155.72,0.000108,2]
[399311994,1766283031800,-114.30038249,0.00010973,2]
[399311996,1766283031812,-72.46371742,0.00010973,2]
[399311998,1766283031821,-155.72,0.00011,2]
[399311999,1766283031831,-151.74863813,0.00011033,2]
[399312000,1766283031840,-217.28694004,0.00011039,2]
[399312001,1766283031890,-82.71305996,0.00011039,2]
[399312002,1766283031899,-300.0,0.00011039,2]
[399312003,1766283031908,-573.91178932,0.00011039,2]
[399312004,1766283031920,-626.08821068,0.00011039,2]
[399312005,1766283031930,-300.0,0.00011039,2]
[399312006,1766283031939,-267.47764894,0.0001104,2]
[399312007,1766283031948,-208.26296447,0.0001104,2]
[399312008,1766283031958,-174.53503842,0.0001104,2]
[399312009,1766283031967,-195.8168835,0.0001104,2]
[399312010,1766283031977,-307.40446748,0.0001104,2]
[399312011,1766283031986,-380.78425222,0.0001104,2]
[399312012,1766283031996,-403.03596083,0.0001104,2]
[399312013,1766283032005,-1018.0,0.0001104,2]
[399312014,1766283032015,-34669.27014204,0.00011041,2]
[399312047,1766283037946,-15330.72985796,0.00011041,2]
[399312049,1766283037956,-134745.23648163,0.00011042,2]
[399312054,1766283038000,-640.4223025,0.00011042,2]
[399312056,1766283038011,-889.78,0.00011042,2]
[399312063,1766283038066,-36671.5438504,0.00011042,2]
[399312151,1766283040506,-3e-08,0.00011042,2]
[399312326,1766283045899,-5000.0,0.00010931,2]
[399312327,1766283045908,-7279.8309739,0.00011042,2]
[399312328,1766283047408,-7150.62207976,0.00011042,2]
[399312329,1766283047422,-10000.01,0.00011042,2]
[399312330,1766283047437,-10000.01,0.00011042,2]
[399312331,1766283047451,-10000.01,0.00011042,2]
[399312332,1766283047465,-10000.01,0.00011042,2]
[399312333,1766283047478,-10000.01,0.00011042,2]
[399312334,1766283047492,-10000.01,0.00011042,2]
[399312335,1766283047533,-10000.01,0.00011042,2]
[399312336,1766283047632,-10000.01,0.00011042,2]
[399312337,1766283047793,-10000.01,0.00011042,2]
[399312338,1766283052965,455.33,9.388e-05,2]
[399312339,1766283053393,910.66,0.00010242,2]
[399312340,1766283079646,-5000.0,0.00010931,2]
[399312341,1766283088948,0.01,0.00010931,2]
[399312342,1766283088969,4999.99,0.00010931,2]
[399312343,1766283091393,212.40926593,0.00010418,2]
[399312344,1766283093591,382.33667867,0.00010851,2]
[399312345,1766283112924,5000.0,0.00011031,2]
[399312346,1766283133861,437.95,9.312e-05,2]
[399312347,1766283134273,875.89,0.00010159,2]
[399312348,1766283134680,1313.84,0.00011005,2]
[399312349,1766283136999,2372.33,0.00011031,2]
[399312350,1766283137020,2627.67,0.00011031,2]
[399312351,1766283146402,9890.92,0.00032876,120]
[399312352,1766283162234,663.02367733,0.0001067,5]
[399312353,1766283212771,404.5,8.999e-05,2]
[399312354,1766283213149,809.01,9.817e-05,2]
[399312355,1766283213892,1213.51,0.00010635,2]
[399312356,1766283261220,-187.23435426,0.00011041,2]
[399312357,1766283281819,-419.00354641,0.00011041,2]
[399312358,1766283282375,552.16103614,0.00011017,2]
[399312359,1766283291231,373.61,8.973e-05,2]
[399312360,1766283291613,747.23,9.789e-05,2]
[399312361,1766283292026,1120.84,0.00010605,2]
[399312362,1766283299048,500.0,0.00011041,2]
[399312363,1766283299075,164.6150673,0.00011041,2]
[399312364,1766283299108,291.65790008,0.00011041,2]
[399312365,1766283299136,500.0,0.00011041,2]
[399312366,1766283299167,500.0,0.00011041,2]
[399312367,1766283299196,200.52828419,0.00011041,2]
[399312368,1766283299225,500.0,0.00011041,2]
[399312369,1766283299255,500.0,0.00011041,2]
[399312370,1766283299282,344.2892254,0.00011041,2]
[399312371,1766283299309,164.17959576,0.00011041,2]
[399312372,1766283299337,500.0,0.00011041,2]
[399312373,1766283305806,-296.0,0.00011041,2]
[399312374,1766283305837,-300.0,0.00011041,2]
[399312375,1766283324162,574.12855637,0.00011035,2]
[399312376,1766283325051,-1154.32071283,0.00011042,2]
[399312377,1766283325095,-10000.01,0.00011042,2]
[399312378,1766283325266,-10000.01,0.00011042,2]
[399312379,1766283325414,-10000.01,0.00011042,2]
[399312380,1766283325641,-10000.01,0.00011042,2]
[399312381,1766283325870,-10000.01,0.00011042,2]
[399312382,1766283326083,-10000.01,0.00011042,2]
[399312383,1766283326250,-10000.01,0.00011042,2]
[399312384,1766283330610,2773.56790519,0.00011035,2]
[399312385,1766283364799,-5000.0,0.00010925,2]
[399312386,1766283364848,-500.0,0.00011035,2]
[399312387,1766283364877,-500.0,0.00011035,2]
[399312388,1766283364905,-500.0,0.00011035,2]
[399312389,1766283364934,-511.21944762,0.00011035,2]
[399312390,1766283364962,-300.0,0.00011041,2]
[399312391,1766283365128,-2615.23264719,0.00011042,2]
[399312392,1766283365141,-10000.01,0.00011042,2]
[399312393,1766283367451,-10000.01,0.00011042,2]
[399312394,1766283367566,-10000.01,0.00011042,2]
[399312395,1766283367676,-10000.01,0.00011042,2]
[399312396,1766283367789,-10000.01,0.00011042,2]
[399312397,1766283367996,-10000.01,0.00011042,2]
[399312398,1766283379293,9478.8,0.00032876,120]
[399312399,1766283381784,356.54,8.99e-05,2]
[399312400,1766283382226,713.08,9.808e-05,2]
[399312401,1766283392062,-5000.0,0.00010519,2]
[399312402,1766283392101,-0.01,0.00010625,2]
[399312403,1766283392168,-1069.6,0.00010625,2]
[399312404,1766283392200,-925.53591143,0.0001067,5]
[399312406,1766283410541,-5000.0,0.00010931,2]
[399312407,1766283433376,5000.0,0.00010921,2]
[399312408,1766283456328,5000.0,0.00011011,2]
[399312409,1766283461524,352.29,9.23e-05,2]
[399312410,1766283461557,704.57,0.00010069,2]
[399312411,1766283461938,1056.86,0.00010908,2]
[399312412,1766283462962,176.40187769,0.00010233,5]
[399312413,1766283465134,669.38212517,0.00010532,2]
[399312414,1766283466721,1204.88782531,0.00010985,2]
[399312415,1766283479858,835.61817183,0.00011011,2]
[399312416,1766283479882,4164.38182817,0.00011011,2]
[399312417,1766283503971,5000.0,0.00011011,2]
[399312418,1766283517981,835.62817183,0.00010199,2]
[399312419,1766283518002,2496.77663707,0.00010199,2]
[399312420,1766283527498,5000.0,0.00011011,2]
[399312421,1766283542096,371.82,9.217e-05,2]
[399312422,1766283542503,743.65,0.00010055,2]
[399312423,1766283625565,7045.74199782,0.00032876,120]
[399312424,1766283626675,9083.85,0.00032876,120]
[399312425,1766283626778,404.24,9.229e-05,2]
[399312426,1766283627190,808.48,0.00010068,2]
[399312427,1766283662868,334.18,0.0001,2]
[399312428,1766283665376,334.18,0.000102,2]
[399312429,1766283667668,334.18,0.000104,2]
[399312430,1766283670119,334.18,0.000106,2]
[399312431,1766283696935,164.85161426,0.0001008,2]
[399312432,1766283699302,217.21624467,0.00010233,5]
[399312433,1766283700226,659.40645702,0.00010535,2]
[399312434,1766283706332,410.35,9.004e-05,2]
[399312435,1766283706762,820.71,9.823e-05,2]
[399312436,1766283713983,-402.03578333,0.00010642,2]
[399312437,1766283716546,-436.05711421,0.00010642,2]
[399312438,1766283752887,-204.83519066,0.00010642,2]
[399312439,1766283754824,5000.0,0.0001062,2]
[399312440,1766283778275,5000.0,0.00010632,2]
[399312441,1766283785957,0.01,8.966e-05,2]
[399312442,1766283785981,450.82,8.966e-05,2]
[399312443,1766283786358,901.66,9.781e-05,2]
[399312444,1766283786756,1352.49,0.00010596,2]
[399312445,1766283806826,5000.0,0.00010632,2]
[399312446,1766283846906,167.42,0.0001,2]
[399312447,1766283849782,167.42,0.000102,2]
[399312448,1766283851637,167.42,0.000104,2]
[399312449,1766283855094,8705.36,0.00032876,120]
[399312450,1766283866331,558.15,8.949e-05,2]
[399312451,1766283866730,1116.3,9.763e-05,2]
[399312452,1766283895366,-161.66419053,0.00010576,2]
[399312453,1766283896935,-195.8591517,0.00010576,2]
[399312454,1766283899685,-175.37496474,0.00010576,2]
[399312455,1766283901827,-269.67637836,0.00010576,2]
[399312456,1766283903800,-351.59117295,0.00010576,2]
[399312457,1766283913042,-476.00863089,0.00010576,2]
[399312458,1766283916594,-44.26551083,0.00010576,2]
[399312459,1766283916618,-131.1796504,0.00010583,2]
[399312460,1766283921129,-198.5,0.00010583,2]
[399312461,1766283924399,-251.79547661,0.00010583,2]
[399312462,1766283926339,-335.40821522,0.00010583,2]
[399312464,1766283928972,-253.63,0.00010583,2]
[399312465,1766283943596,-3829.48665777,0.00010583,2]
[399312466,1766283947147,548.51,8.908e-05,2]
[399312467,1766283947555,1097.01,9.718e-05,2]
[399312468,1766283947998,695.51668446,0.00010528,2]
[399312469,1766283948028,950.00331554,0.00010528,2]
[399312470,1766283962664,-167.42,0.000106,2]
[399312471,1766283964984,5000.0,0.00010583,2]
[399312472,1766283979394,-410.62347548,0.00010627,2]
[399312473,1766283988072,5000.0,0.00010627,2]
[399312474,1766284004740,415.20532984,0.00010396,2]
[399312475,1766284005694,-342.56819257,0.0001067,5]
[399312476,1766284008167,-377.40211135,0.00010674,5]
[399312477,1766284008186,-889.41800332,0.0001069,2]
[399312478,1766284011052,5000.0,0.0001067,2]
[399312479,1766284013643,317.2,0.00032877,120]
[399312480,1766284022642,254.05,0.0001,2]
[399312481,1766284026859,506.62,9.352e-05,2]
[399312482,1766284027304,1013.24,0.00010202,2]
[399312483,1766284032102,-2117.25151394,0.0001069,2]
[399312484,1766284032123,-571.0,0.00010783,2]
[399312485,1766284032143,-341.11025854,0.00010845,2]
[399312486,1766284032173,-747.36959372,0.00010856,2]
[399312487,1766284032200,-655.79234793,0.00010891,2]
[399312488,1766284032224,-204.96846416,0.0001094,2]
[399312489,1766284032247,-244.50314269,0.0001094,2]
[399312490,1766284032267,-300.0,0.0001094,2]
[399312491,1766284032289,-50000.0,0.00010941,2]
[399312492,1766284032312,-50290.89295553,0.00010942,2]
[399312493,1766284045955,-5000.0,0.00010832,2]
[399312495,1766284058545,0.01,0.00010832,2]
[399312496,1766284058568,4999.99,0.00010832,2]
[399312497,1766284060005,-183.24628112,0.00010942,2]
[399312498,1766284062224,-388.0294668,0.00010942,2]